Workbook

Sheet Title
C1: Calculation practice activities to accompany CHAPTER 8
C3: Social Statistics in Action: A Canadian Introduction
C4: Andrea M. Noack
C6: Oxford University Press, 2018
C8: For more information, visit:
C9: https://www.oupcanada.com/catalog/9780199015214.html

Sheet ANOVA (2 groups)
B1: PRACTICE CALCULATING ONE-WAY ANOVA (2 GROUPS)
B3: Using the values in the yellow highlighed cells, calculate the between group sum of squares, the within group sum of squares, the total sum of squares, the degrees of freedom and the F-statistic. Keep two decimal places throughout your calculations. To check your answers, click on the 'Show Sum of Squares' and/or 'Show F-Statistic' buttons.
B6: GROUP 1 | E6: GROUP 2 | H6: Means
B7: Case # | C7: Value on Variable X | E7: Case # | F7: Value on Variable X | H7: Group 1 Mean (x-bargroup): | J7: 26.9
H8: Group 2 Mean (x-bargroup): | J8: 18.9
B9: 1 | C9: 32 | E9: 11 | F9: 24 | H9: Overall Mean (x-bartotal): | J9: 22.9
B10: 2 | C10: 38 | E10: 12 | F10: 25
B11: 3 | C11: 17 | E11: 13 | F11: 26 | H11: Sum of Squares
B12: 4 | C12: 24 | E12: 14 | F12: 21 | H12: Between group sum of squares: | J12: hidden
B13: 5 | C13: 10 | E13: 15 | F13: 19 | H13: Within group sum of squares: | J13: hidden
B14: 6 | C14: 24 | E14: 16 | F14: 5 | H14: Total sum of squares: | J14: hidden
B15: 7 | C15: 29 | E15: 17 | F15: 23
B16: 8 | C16: 40 | E16: 18 | F16: 16 | H16: F-statistic
B17: 9 | C17: 20 | E17: 19 | F17: 10 | H17: Between group degrees of freedom: | J17: hidden
B18: 10 | C18: 35 | E18: 20 | F18: 20 | H18: Within group degrees of freedom: | J18: hidden
B19: Need some help? | H19: F-statistic: | J19: hidden
H21: If the F-statistic is higher than 4.41, then p<0.05.
B23: BETWEEN GROUP SUM OF SQUARES CALCULATION
B24: Group # | C24: Group Mean | D24: Overall Mean | F24: Cases in Group | H24: Group Mean-Overall Mean | I24: (Group Mean-Overall Mean)2 | L24: Number of Cases in Group x (Group Mean-Overall Mean)2
B25: 1 | C25: 26.9 | D25: 22.9 | F25: 10 | H25: 26.9 - 22.9 = ? | I25: 4 x 4 = ? | L25: 10 x 16 = ?
B26: 2 | C26: 18.9 | D26: 22.9 | F26: 10 | H26: 18.9 - 22.9 = ? | I26: -4 x -4 = ? | L26: 10 x 16 = ?
L27: Column Sum (Σ) | M27: = ?
B29: WITHIN GROUP SUM OF SQUARES CALCULATION
B30: Case # | C30: Value | D30: Group Mean | F30: Value-Group Mean | H30: (Value - Group Mean)2
B31: 1 | C31: 32 | D31: 26.9 | F31: 32 - 26.9 = ? | H31: 5.1 x 5.1 = ?
B32: 2 | C32: 38 | D32: 26.9 | F32: 38 - 26.9 = ? | H32: 11.1 x 11.1 = ?
B33: 3 | C33: 17 | D33: 26.9 | F33: 17 - 26.9 = ? | H33: -9.9 x -9.9 = ?
B34: 4 | C34: 24 | D34: 26.9 | F34: 24 - 26.9 = ? | H34: -2.9 x -2.9 = ?
B35: 5 | C35: 10 | D35: 26.9 | F35: 10 - 26.9 = ? | H35: -16.9 x -16.9 = ?
B36: 6 | C36: 24 | D36: 26.9 | F36: 24 - 26.9 = ? | H36: -2.9 x -2.9 = ?
B37: 7 | C37: 29 | D37: 26.9 | F37: 29 - 26.9 = ? | H37: 2.1 x 2.1 = ?
B38: 8 | C38: 40 | D38: 26.9 | F38: 40 - 26.9 = ? | H38: 13.1 x 13.1 = ?
B39: 9 | C39: 20 | D39: 26.9 | F39: 20 - 26.9 = ? | H39: -6.9 x -6.9 = ?
B40: 10 | C40: 35 | D40: 26.9 | F40: 35 - 26.9 = ? | H40: 8.1 x 8.1 = ?
B41: 11 | C41: 24 | D41: 18.9 | F41: 24 - 18.9 = ? | H41: 5.1 x 5.1 = ?
B42: 12 | C42: 25 | D42: 18.9 | F42: 25 - 18.9 = ? | H42: 6.1 x 6.1 = ?
B43: 13 | C43: 26 | D43: 18.9 | F43: 26 - 18.9 = ? | H43: 7.1 x 7.1 = ?
B44: 14 | C44: 21 | D44: 18.9 | F44: 21 - 18.9 = ? | H44: 2.1 x 2.1 = ?
B45: 15 | C45: 19 | D45: 18.9 | F45: 19 - 18.9 = ? | H45: 0.1 x 0.1 = ?
B46: 16 | C46: 5 | D46: 18.9 | F46: 5 - 18.9 = ? | H46: -13.9 x -13.9 = ?
B47: 17 | C47: 23 | D47: 18.9 | F47: 23 - 18.9 = ? | H47: 4.1 x 4.1 = ?
B48: 18 | C48: 16 | D48: 18.9 | F48: 16 - 18.9 = ? | H48: -2.9 x -2.9 = ?
B49: 19 | C49: 10 | D49: 18.9 | F49: 10 - 18.9 = ? | H49: -8.9 x -8.9 = ?
B50: 20 | C50: 20 | D50: 18.9 | F50: 20 - 18.9 = ? | H50: 1.1 x 1.1 = ?
F51: Column Sum (Σ) | H51: = ?
B53: TOTAL SUM OF SQUARES CALCULATION
B54: Case # | C54: Value | D54: Overall Mean | F54: Value-Overall Mean | H54: (Value - Overall Mean)2
B55: 1 | C55: 32 | D55: 22.9 | F55: 32 - 22.9 = ? | H55: 9.1 x 9.1 = ?
B56: 2 | C56: 38 | D56: 22.9 | F56: 38 - 22.9 = ? | H56: 15.1 x 15.1 = ?
B57: 3 | C57: 17 | D57: 22.9 | F57: 17 - 22.9 = ? | H57: -5.9 x -5.9 = ?
B58: 4 | C58: 24 | D58: 22.9 | F58: 24 - 22.9 = ? | H58: 1.1 x 1.1 = ?
B59: 5 | C59: 10 | D59: 22.9 | F59: 10 - 22.9 = ? | H59: -12.9 x -12.9 = ?
B60: 6 | C60: 24 | D60: 22.9 | F60: 24 - 22.9 = ? | H60: 1.1 x 1.1 = ?
B61: 7 | C61: 29 | D61: 22.9 | F61: 29 - 22.9 = ? | H61: 6.1 x 6.1 = ?
B62: 8 | C62: 40 | D62: 22.9 | F62: 40 - 22.9 = ? | H62: 17.1 x 17.1 = ?
B63: 9 | C63: 20 | D63: 22.9 | F63: 20 - 22.9 = ? | H63: -2.9 x -2.9 = ?
B64: 10 | C64: 35 | D64: 22.9 | F64: 35 - 22.9 = ? | H64: 12.1 x 12.1 = ?
B65: 11 | C65: 24 | D65: 22.9 | F65: 24 - 22.9 = ? | H65: 1.1 x 1.1 = ?
B66: 12 | C66: 25 | D66: 22.9 | F66: 25 - 22.9 = ? | H66: 2.1 x 2.1 = ?
B67: 13 | C67: 26 | D67: 22.9 | F67: 26 - 22.9 = ? | H67: 3.1 x 3.1 = ?
B68: 14 | C68: 21 | D68: 22.9 | F68: 21 - 22.9 = ? | H68: -1.9 x -1.9 = ?
B69: 15 | C69: 19 | D69: 22.9 | F69: 19 - 22.9 = ? | H69: -3.9 x -3.9 = ?
B70: 16 | C70: 5 | D70: 22.9 | F70: 5 - 22.9 = ? | H70: -17.9 x -17.9 = ?
B71: 17 | C71: 23 | D71: 22.9 | F71: 23 - 22.9 = ? | H71: 0.1 x 0.1 = ?
B72: 18 | C72: 16 | D72: 22.9 | F72: 16 - 22.9 = ? | H72: -6.9 x -6.9 = ?
B73: 19 | C73: 10 | D73: 22.9 | F73: 10 - 22.9 = ? | H73: -12.9 x -12.9 = ?
B74: 20 | C74: 20 | D74: 22.9 | F74: 20 - 22.9 = ? | H74: -2.9 x -2.9 = ?
F75: Column Sum (Σ) | H75: = ?
B77: F-STATISTIC CALCULATION
B78: Between group degrees of freedom
F79: = 2 - 1
F80: = ?
B81: Within group degrees of freedom
F82: = (10 - 1) + (10 - 1)
F83: = ? + ?
F84: = ?
B85: F-Statistic Numerator
F86: = 320 ÷ 1
F87: = ?
B88: F-Statistic Denominator
F89: = 1255.8 ÷ 18
F90: = ?
B91: F-Statistic
F92: = 320 ÷ 69.77
F93: = ?

Sheet ANOVA (3 groups)
B1: PRACTICE CALCULATING ONE-WAY ANOVA (3 GROUPS)
B3: Using the values in the yellow highlighed cells, calculate the between group sum of squares, the within group sum of squares, the total sum of squares, the degrees of freedom and the F-statistic. Keep two decimal places throughout your calculations. Because of rounding, the total sum of squares may not be exactly equal to the sum of the between group sum of squares and the within group sum of squares. To check your answers, click on the 'Show Sum of Squares' and/or 'Show F-Statistic' buttons.
B6: GROUP 1 | E6: GROUP 2 | H6: GROUP 3 | K6: Means
B7: Case # | C7: Value on Variable X | E7: Case # | F7: Value on Variable X | H7: Case # | I7: Value on Variable X | K7: Group 1 Mean (x-bargroup): | M7: 10.14
K8: Group 2 Mean (x-bargroup): | M8: 15.78
B9: 1 | C9: 13 | E9: 8 | F9: 19 | H9: 17 | I9: 16 | K9: Group 3 Mean (x-bargroup): | M9: 14.38
B10: 2 | C10: 11 | E10: 9 | F10: 18 | H10: 18 | I10: 10 | K10: Overall Mean (x-bartotal): | M10: 13.67
B11: 3 | C11: 11 | E11: 10 | F11: 15 | H11: 19 | I11: 11
B12: 4 | C12: 3 | E12: 11 | F12: 9 | H12: 20 | I12: 11 | K12: Sum of Squares
B13: 5 | C13: 16 | E13: 12 | F13: 12 | H13: 21 | I13: 23 | K13: Between group sum of squares: | M13: hidden
B14: 6 | C14: 15 | E14: 13 | F14: 20 | H14: 22 | I14: 7 | K14: Within group sum of squares: | M14: hidden
B15: 7 | C15: 2 | E15: 14 | F15: 24 | H15: 23 | I15: 11 | K15: Total sum of squares: | M15: hidden
E16: 15 | F16: 14 | H16: 24 | I16: 26
E17: 16 | F17: 11 | K17: F-statistic
K18: Between group degrees of freedom: | M18: hidden
K19: Within group degrees of freedom: | M19: hidden
B20: Need some help? | K20: F-statistic: | M20: hidden
K22: If the F-statistic is higher than 3.44, then p<0.05.
B24: BETWEEN GROUP SUM OF SQUARES CALCULATION
B25: Group # | C25: Group Mean | D25: Overall Mean | F25: Cases in Group | H25: Group Mean-Overall Mean | K25: (Group Mean-Overall Mean)2 | L25: Number of Cases in Group x (Group Mean-Overall Mean)2
B26: 1 | C26: 10.14 | D26: 13.67 | F26: 7 | H26: 10.14 - 13.67 = ? | K26: -3.53 x -3.53 = ? | L26: 7 x 12.46 = ?
B27: 2 | C27: 15.78 | D27: 13.67 | F27: 9 | H27: 15.78 - 13.67 = ? | K27: 2.11 x 2.11 = ? | L27: 9 x 4.45 = ?
B28: 3 | C28: 14.38 | D28: 13.67 | F28: 8 | H28: 14.38 - 13.67 = ? | K28: 0.71 x 0.71 = ? | L28: 8 x 0.5 = ?
L29: Column Sum (Σ) | M29: = ?
B31: WITHIN GROUP SUM OF SQUARES CALCULATION
B32: Case # | C32: Value | D32: Group Mean | F32: Value-Group Mean | H32: (Value - Group Mean)2
B33: 1 | C33: 13 | D33: 10.14 | F33: 13 - 10.14 = ? | H33: 2.86 x 2.86 = ?
B34: 2 | C34: 11 | D34: 10.14 | F34: 11 - 10.14 = ? | H34: 0.86 x 0.86 = ?
B35: 3 | C35: 11 | D35: 10.14 | F35: 11 - 10.14 = ? | H35: 0.86 x 0.86 = ?
B36: 4 | C36: 3 | D36: 10.14 | F36: 3 - 10.14 = ? | H36: -7.14 x -7.14 = ?
B37: 5 | C37: 16 | D37: 10.14 | F37: 16 - 10.14 = ? | H37: 5.86 x 5.86 = ?
B38: 6 | C38: 15 | D38: 10.14 | F38: 15 - 10.14 = ? | H38: 4.86 x 4.86 = ?
B39: 7 | C39: 2 | D39: 10.14 | F39: 2 - 10.14 = ? | H39: -8.14 x -8.14 = ?
B40: 8 | C40: 19 | D40: 15.78 | F40: 19 - 15.78 = ? | H40: 3.22 x 3.22 = ?
B41: 9 | C41: 18 | D41: 15.78 | F41: 18 - 15.78 = ? | H41: 2.22 x 2.22 = ?
B42: 10 | C42: 15 | D42: 15.78 | F42: 15 - 15.78 = ? | H42: -0.78 x -0.78 = ?
B43: 11 | C43: 9 | D43: 15.78 | F43: 9 - 15.78 = ? | H43: -6.78 x -6.78 = ?
B44: 12 | C44: 12 | D44: 15.78 | F44: 12 - 15.78 = ? | H44: -3.78 x -3.78 = ?
B45: 13 | C45: 20 | D45: 15.78 | F45: 20 - 15.78 = ? | H45: 4.22 x 4.22 = ?
B46: 14 | C46: 24 | D46: 15.78 | F46: 24 - 15.78 = ? | H46: 8.22 x 8.22 = ?
B47: 15 | C47: 14 | D47: 15.78 | F47: 14 - 15.78 = ? | H47: -1.78 x -1.78 = ?
B48: 16 | C48: 11 | D48: 15.78 | F48: 11 - 15.78 = ? | H48: -4.78 x -4.78 = ?
B49: 17 | C49: 16 | D49: 14.38 | F49: 16 - 14.38 = ? | H49: 1.62 x 1.62 = ?
B50: 18 | C50: 10 | D50: 14.38 | F50: 10 - 14.38 = ? | H50: -4.38 x -4.38 = ?
B51: 19 | C51: 11 | D51: 14.38 | F51: 11 - 14.38 = ? | H51: -3.38 x -3.38 = ?
B52: 20 | C52: 11 | D52: 14.38 | F52: 11 - 14.38 = ? | H52: -3.38 x -3.38 = ?
B53: 21 | C53: 23 | D53: 14.38 | F53: 23 - 14.38 = ? | H53: 8.62 x 8.62 = ?
B54: 22 | C54: 7 | D54: 14.38 | F54: 7 - 14.38 = ? | H54: -7.38 x -7.38 = ?
B55: 23 | C55: 11 | D55: 14.38 | F55: 11 - 14.38 = ? | H55: -3.38 x -3.38 = ?
B56: 24 | C56: 26 | D56: 14.38 | F56: 26 - 14.38 = ? | H56: 11.62 x 11.62 = ?
F57: Column Sum (Σ) | H57: = ?
B59: TOTAL SUM OF SQUARES CALCULATION
B60: Case # | C60: Value | D60: Overall Mean | F60: Value-Overall Mean | H60: (Value - Overall Mean)2
B61: 1 | C61: 13 | D61: 13.67 | F61: 13 - 13.67 = ? | H61: -0.67 x -0.67 = ?
B62: 2 | C62: 11 | D62: 13.67 | F62: 11 - 13.67 = ? | H62: -2.67 x -2.67 = ?
B63: 3 | C63: 11 | D63: 13.67 | F63: 11 - 13.67 = ? | H63: -2.67 x -2.67 = ?
B64: 4 | C64: 3 | D64: 13.67 | F64: 3 - 13.67 = ? | H64: -10.67 x -10.67 = ?
B65: 5 | C65: 16 | D65: 13.67 | F65: 16 - 13.67 = ? | H65: 2.33 x 2.33 = ?
B66: 6 | C66: 15 | D66: 13.67 | F66: 15 - 13.67 = ? | H66: 1.33 x 1.33 = ?
B67: 7 | C67: 2 | D67: 13.67 | F67: 2 - 13.67 = ? | H67: -11.67 x -11.67 = ?
B68: 8 | C68: 19 | D68: 13.67 | F68: 19 - 13.67 = ? | H68: 5.33 x 5.33 = ?
B69: 9 | C69: 18 | D69: 13.67 | F69: 18 - 13.67 = ? | H69: 4.33 x 4.33 = ?
B70: 10 | C70: 15 | D70: 13.67 | F70: 15 - 13.67 = ? | H70: 1.33 x 1.33 = ?
B71: 11 | C71: 9 | D71: 13.67 | F71: 9 - 13.67 = ? | H71: -4.67 x -4.67 = ?
B72: 12 | C72: 12 | D72: 13.67 | F72: 12 - 13.67 = ? | H72: -1.67 x -1.67 = ?
B73: 13 | C73: 20 | D73: 13.67 | F73: 20 - 13.67 = ? | H73: 6.33 x 6.33 = ?
B74: 14 | C74: 24 | D74: 13.67 | F74: 24 - 13.67 = ? | H74: 10.33 x 10.33 = ?
B75: 15 | C75: 14 | D75: 13.67 | F75: 14 - 13.67 = ? | H75: 0.33 x 0.33 = ?
B76: 16 | C76: 11 | D76: 13.67 | F76: 11 - 13.67 = ? | H76: -2.67 x -2.67 = ?
B77: 17 | C77: 16 | D77: 13.67 | F77: 16 - 13.67 = ? | H77: 2.33 x 2.33 = ?
B78: 18 | C78: 10 | D78: 13.67 | F78: 10 - 13.67 = ? | H78: -3.67 x -3.67 = ?
B79: 19 | C79: 11 | D79: 13.67 | F79: 11 - 13.67 = ? | H79: -2.67 x -2.67 = ?
B80: 20 | C80: 11 | D80: 13.67 | F80: 11 - 13.67 = ? | H80: -2.67 x -2.67 = ?
B81: 21 | C81: 23 | D81: 13.67 | F81: 23 - 13.67 = ? | H81: 9.33 x 9.33 = ?
B82: 22 | C82: 7 | D82: 13.67 | F82: 7 - 13.67 = ? | H82: -6.67 x -6.67 = ?
B83: 23 | C83: 11 | D83: 13.67 | F83: 11 - 13.67 = ? | H83: -2.67 x -2.67 = ?
B84: 24 | C84: 26 | D84: 13.67 | F84: 26 - 13.67 = ? | H84: 12.33 x 12.33 = ?
F85: Column Sum (Σ) | H85: = ?
B87: F-STATISTIC CALCULATION
B88: Between group degrees of freedom
F89: = 3 - 1
F90: = ?
B91: Within group degrees of freedom
F92: = (7 - 1) + (9 - 1) + (8 - 1)
F93: = ? + ? + ?
F94: = ?
B95: F-Statistic Numerator
F96: = 131.27 ÷ 2
F97: = ?
B98: F-Statistic Denominator
F99: = 692.27 ÷ 21
F100: = ?
B101: F-Statistic
F102: = 65.64 ÷ 32.97
F103: = ?

Sheet ANOVA (2 groups)-A (hidden)
B1: PRACTICE CALCULATING ANOVA (2 GROUPS)
B6: GROUP 1 | E6: GROUP 2 | H6: Means
B7: Case # | C7: Value | E7: Case # | F7: Value | H7: Group 1 Mean | J7: =ROUND(AVERAGE(C8:C17),2) -> 26.9
A8: =RANDBETWEEN(10,40) -> 11 | B8: 1 | C8: 32 | D8: =RANDBETWEEN(1,30) -> 15 | E8: 11 | F8: 24 | H8: Group 2 Mean | J8: =ROUND(AVERAGE(F8:F17),2) -> 18.9
A9: =RANDBETWEEN(10,40) -> 32 | B9: 2 | C9: 38 | D9: =RANDBETWEEN(1,30) -> 3 | E9: 12 | F9: 25 | H9: Overall Mean | J9: =ROUND(AVERAGE(C8:C17,F8:F17),2) -> 22.9
A10: 39 | B10: 3 | C10: 17 | D10: 2 | E10: 13 | F10: 26
A11: 13 | B11: 4 | C11: 24 | D11: 4 | E11: 14 | F11: 21 | H11: Sum of Squares
A12: 30 | B12: 5 | C12: 10 | D12: 8 | E12: 15 | F12: 19 | H12: Between group sum of squares | J12: =P27 -> 320
A13: 10 | B13: 6 | C13: 24 | D13: 6 | E13: 16 | F13: 5 | H13: Within group sum of squares | J13: =J51 -> 1255.8
A14: 18 | B14: 7 | C14: 29 | D14: 15 | E14: 17 | F14: 23 | H14: Total sum of squares | J14: =J75 -> 1575.8
A15: 23 | B15: 8 | C15: 40 | D15: 18 | E15: 18 | F15: 16
A16: 27 | B16: 9 | C16: 20 | D16: 26 | E16: 19 | F16: 10 | H16: F-statistic
A17: 28 | B17: 10 | C17: 35 | D17: 4 | E17: 20 | F17: 20 | H17: Between group degrees of freedom | J17: =1 -> 1
H18: Within group degrees of freedom | J18: =18 -> 18
B19: Need some help? | H19: F-statistic | J19: =H92 -> 4.59
H21: If the F-statistic is greater than 4.41 then p<0.05.
B23: BETWEEN GROUP SUM OF SQUARES CALCULATION
B24: Group # | C24: Group Mean | D24: Overall Mean | F24: Cases in Group | H24: Group Mean-Overall Mean | I24: (Group Mean-Overall Mean)2 | L24: Number of Cases*(Group Mean-Overall Mean)2
B25: 1 | C25: =J7 -> 26.9 | D25: =J9 -> 22.9 | F25: 10 | H25: =CONCATENATE(C25," - ",D25," = ",N25) -> 26.9 - 22.9 = 4 | I25: =CONCATENATE(N25," x ",N25," = ",O25) -> 4 x 4 = 16 | L25: =CONCATENATE(F25," x ",O25," = ",P25) -> 10 x 16 = 160 | N25: =ROUND(J7-J9,2) -> 4 | O25: =ROUND(N25*N25,2) -> 16 | P25: =ROUND(O25*F25,2) -> 160 | R25: =CONCATENATE(C25," - ",D25," = ?") -> 26.9 - 22.9 = ? | S25: =CONCATENATE(N25," x ",N25," = ?") -> 4 x 4 = ? | V25: =CONCATENATE(F25," x ",O25," = ?") -> 10 x 16 = ?
B26: 2 | C26: =J8 -> 18.9 | D26: =J9 -> 22.9 | F26: 10 | H26: =CONCATENATE(C26," - ",D26," = ",N26) -> 18.9 - 22.9 = -4 | I26: =CONCATENATE(N26," x ",N26," = ",O26) -> -4 x -4 = 16 | L26: =CONCATENATE(F26," x ",O26," = ",P26) -> 10 x 16 = 160 | N26: =ROUND(J8-J9,2) -> -4 | O26: =ROUND(N26*N26,2) -> 16 | P26: =ROUND(O26*F26,2) -> 160 | R26: =CONCATENATE(C26," - ",D26," = ?") -> 18.9 - 22.9 = ? | S26: =CONCATENATE(N26," x ",N26," = ?") -> -4 x -4 = ? | V26: =CONCATENATE(F26," x ",O26," = ?") -> 10 x 16 = ?
L27: Column Sum: | M27: =CONCATENATE("'= ",P27) -> '= 320 | P27: =ROUND(SUM(P25:P26),2) -> 320
B29: WITHIN GROUP SUM OF SQUARES CALCULATION
B30: Case # | C30: Value | D30: Group Mean | F30: Value-Group Mean | H30: (Value - Group Mean)2
B31: 1 | C31: =C8 -> 32 | D31: =$J$7 -> 26.9 | F31: =CONCATENATE(C31," - ",D31," = ",I31) -> 32 - 26.9 = 5.1 | H31: =CONCATENATE(I31," x ",I31," = ",J31) -> 5.1 x 5.1 = 26.01 | I31: =ROUND(C31-D31,2) -> 5.1 | J31: =ROUND(I31*I31,2) -> 26.01 | R31: =CONCATENATE(C31," - ",D31," = ?") -> 32 - 26.9 = ? | T31: =CONCATENATE(I31," x ",I31," = ?") -> 5.1 x 5.1 = ?
B32: 2 | C32: 38 | D32: =$J$7 -> 26.9 | F32: =CONCATENATE(C32," - ",D32," = ",I32) -> 38 - 26.9 = 11.1 | H32: =CONCATENATE(I32," x ",I32," = ",J32) -> 11.1 x 11.1 = 123.21 | I32: =ROUND(C32-D32,2) -> 11.1 | J32: =ROUND(I32*I32,2) -> 123.21 | R32: =CONCATENATE(C32," - ",D32," = ?") -> 38 - 26.9 = ? | T32: =CONCATENATE(I32," x ",I32," = ?") -> 11.1 x 11.1 = ?
B33: 3 | C33: 17 | D33: 26.9 | F33: 17 - 26.9 = -9.9 | H33: -9.9 x -9.9 = 98.01 | I33: -9.9 | J33: 98.01 | R33: 17 - 26.9 = ? | T33: -9.9 x -9.9 = ?
B34: 4 | C34: 24 | D34: 26.9 | F34: 24 - 26.9 = -2.9 | H34: -2.9 x -2.9 = 8.41 | I34: -2.9 | J34: 8.41 | R34: 24 - 26.9 = ? | T34: -2.9 x -2.9 = ?
B35: 5 | C35: 10 | D35: 26.9 | F35: 10 - 26.9 = -16.9 | H35: -16.9 x -16.9 = 285.61 | I35: -16.9 | J35: 285.61 | R35: 10 - 26.9 = ? | T35: -16.9 x -16.9 = ?
B36: 6 | C36: 24 | D36: 26.9 | F36: 24 - 26.9 = -2.9 | H36: -2.9 x -2.9 = 8.41 | I36: -2.9 | J36: 8.41 | R36: 24 - 26.9 = ? | T36: -2.9 x -2.9 = ?
B37: 7 | C37: 29 | D37: 26.9 | F37: 29 - 26.9 = 2.1 | H37: 2.1 x 2.1 = 4.41 | I37: 2.1 | J37: 4.41 | R37: 29 - 26.9 = ? | T37: 2.1 x 2.1 = ?
B38: 8 | C38: 40 | D38: 26.9 | F38: 40 - 26.9 = 13.1 | H38: 13.1 x 13.1 = 171.61 | I38: 13.1 | J38: 171.61 | R38: 40 - 26.9 = ? | T38: 13.1 x 13.1 = ?
B39: 9 | C39: 20 | D39: 26.9 | F39: 20 - 26.9 = -6.9 | H39: -6.9 x -6.9 = 47.61 | I39: -6.9 | J39: 47.61 | R39: 20 - 26.9 = ? | T39: -6.9 x -6.9 = ?
B40: 10 | C40: 35 | D40: 26.9 | F40: 35 - 26.9 = 8.1 | H40: 8.1 x 8.1 = 65.61 | I40: 8.1 | J40: 65.61 | R40: 35 - 26.9 = ? | T40: 8.1 x 8.1 = ?
B41: 11 | C41: =F8 -> 24 | D41: =$J$8 -> 18.9 | F41: 24 - 18.9 = 5.1 | H41: 5.1 x 5.1 = 26.01 | I41: 5.1 | J41: 26.01 | R41: 24 - 18.9 = ? | T41: 5.1 x 5.1 = ?
B42: 12 | C42: 25 | D42: =$J$8 -> 18.9 | F42: =CONCATENATE(C42," - ",D42," = ",I42) -> 25 - 18.9 = 6.1 | H42: 6.1 x 6.1 = 37.21 | I42: 6.1 | J42: 37.21 | R42: 25 - 18.9 = ? | T42: 6.1 x 6.1 = ?
B43: 13 | C43: 26 | D43: 18.9 | F43: =CONCATENATE(C43," - ",D43," = ",I43) -> 26 - 18.9 = 7.1 | H43: 7.1 x 7.1 = 50.41 | I43: 7.1 | J43: 50.41 | R43: 26 - 18.9 = ? | T43: 7.1 x 7.1 = ?
B44: 14 | C44: 21 | D44: 18.9 | F44: 21 - 18.9 = 2.1 | H44: =CONCATENATE(I44," x ",I44," = ",J44) -> 2.1 x 2.1 = 4.41 | I44: 2.1 | J44: 4.41 | R44: 21 - 18.9 = ? | T44: 2.1 x 2.1 = ?
B45: 15 | C45: 19 | D45: 18.9 | F45: 19 - 18.9 = 0.1 | H45: 0.1 x 0.1 = 0.01 | I45: 0.1 | J45: 0.01 | R45: 19 - 18.9 = ? | T45: 0.1 x 0.1 = ?
B46: 16 | C46: 5 | D46: 18.9 | F46: 5 - 18.9 = -13.9 | H46: -13.9 x -13.9 = 193.21 | I46: -13.9 | J46: 193.21 | R46: 5 - 18.9 = ? | T46: -13.9 x -13.9 = ?
B47: 17 | C47: 23 | D47: 18.9 | F47: 23 - 18.9 = 4.1 | H47: 4.1 x 4.1 = 16.81 | I47: 4.1 | J47: 16.81 | R47: 23 - 18.9 = ? | T47: 4.1 x 4.1 = ?
B48: 18 | C48: 16 | D48: 18.9 | F48: 16 - 18.9 = -2.9 | H48: -2.9 x -2.9 = 8.41 | I48: -2.9 | J48: 8.41 | R48: 16 - 18.9 = ? | T48: -2.9 x -2.9 = ?
B49: 19 | C49: 10 | D49: 18.9 | F49: 10 - 18.9 = -8.9 | H49: -8.9 x -8.9 = 79.21 | I49: -8.9 | J49: 79.21 | R49: 10 - 18.9 = ? | T49: -8.9 x -8.9 = ?
B50: 20 | C50: 20 | D50: 18.9 | F50: 20 - 18.9 = 1.1 | H50: 1.1 x 1.1 = 1.21 | I50: 1.1 | J50: 1.21 | R50: 20 - 18.9 = ? | T50: 1.1 x 1.1 = ?
F51: Column Sum: | H51: =CONCATENATE("'= ",J51) -> '= 1255.8 | J51: =SUM(J31:J50) -> 1255.8
B53: TOTAL SUM OF SQUARES CALCULATION
B54: Case # | C54: Value | D54: Overall Mean | F54: Value-Group Mean | H54: (Value - Group Mean)2
B55: 1 | C55: =C31 -> 32 | D55: =$J$9 -> 22.9 | F55: =CONCATENATE(C55," - ",D55," = ",I55) -> 32 - 22.9 = 9.1 | H55: =CONCATENATE(I55," x ",I55," = ",J55) -> 9.1 x 9.1 = 82.81 | I55: =ROUND(C55-D55,2) -> 9.1 | J55: =ROUND(I55*I55,2) -> 82.81 | R55: =CONCATENATE(C55," - ",D55," = ?") -> 32 - 22.9 = ? | T55: =CONCATENATE(I55," x ",I55," = ?") -> 9.1 x 9.1 = ?
B56: 2 | C56: =C32 -> 38 | D56: =$J$9 -> 22.9 | F56: =CONCATENATE(C56," - ",D56," = ",I56) -> 38 - 22.9 = 15.1 | H56: =CONCATENATE(I56," x ",I56," = ",J56) -> 15.1 x 15.1 = 228.01 | I56: =ROUND(C56-D56,2) -> 15.1 | J56: =ROUND(I56*I56,2) -> 228.01 | R56: =CONCATENATE(C56," - ",D56," = ?") -> 38 - 22.9 = ? | T56: =CONCATENATE(I56," x ",I56," = ?") -> 15.1 x 15.1 = ?
B57: 3 | C57: 17 | D57: 22.9 | F57: 17 - 22.9 = -5.9 | H57: -5.9 x -5.9 = 34.81 | I57: -5.9 | J57: 34.81 | R57: 17 - 22.9 = ? | T57: -5.9 x -5.9 = ?
B58: 4 | C58: 24 | D58: 22.9 | F58: 24 - 22.9 = 1.1 | H58: 1.1 x 1.1 = 1.21 | I58: 1.1 | J58: 1.21 | R58: 24 - 22.9 = ? | T58: 1.1 x 1.1 = ?
B59: 5 | C59: 10 | D59: 22.9 | F59: 10 - 22.9 = -12.9 | H59: -12.9 x -12.9 = 166.41 | I59: -12.9 | J59: 166.41 | R59: 10 - 22.9 = ? | T59: -12.9 x -12.9 = ?
B60: 6 | C60: 24 | D60: 22.9 | F60: 24 - 22.9 = 1.1 | H60: 1.1 x 1.1 = 1.21 | I60: 1.1 | J60: 1.21 | R60: 24 - 22.9 = ? | T60: 1.1 x 1.1 = ?
B61: 7 | C61: 29 | D61: 22.9 | F61: 29 - 22.9 = 6.1 | H61: 6.1 x 6.1 = 37.21 | I61: 6.1 | J61: 37.21 | R61: 29 - 22.9 = ? | T61: 6.1 x 6.1 = ?
B62: 8 | C62: 40 | D62: 22.9 | F62: 40 - 22.9 = 17.1 | H62: 17.1 x 17.1 = 292.41 | I62: 17.1 | J62: 292.41 | R62: 40 - 22.9 = ? | T62: 17.1 x 17.1 = ?
B63: 9 | C63: 20 | D63: 22.9 | F63: 20 - 22.9 = -2.9 | H63: -2.9 x -2.9 = 8.41 | I63: -2.9 | J63: 8.41 | R63: 20 - 22.9 = ? | T63: -2.9 x -2.9 = ?
B64: 10 | C64: 35 | D64: 22.9 | F64: 35 - 22.9 = 12.1 | H64: 12.1 x 12.1 = 146.41 | I64: 12.1 | J64: 146.41 | R64: 35 - 22.9 = ? | T64: 12.1 x 12.1 = ?
B65: 11 | C65: 24 | D65: 22.9 | F65: 24 - 22.9 = 1.1 | H65: 1.1 x 1.1 = 1.21 | I65: 1.1 | J65: 1.21 | R65: 24 - 22.9 = ? | T65: 1.1 x 1.1 = ?
B66: 12 | C66: 25 | D66: 22.9 | F66: 25 - 22.9 = 2.1 | H66: 2.1 x 2.1 = 4.41 | I66: 2.1 | J66: 4.41 | R66: 25 - 22.9 = ? | T66: 2.1 x 2.1 = ?
B67: 13 | C67: 26 | D67: 22.9 | F67: 26 - 22.9 = 3.1 | H67: 3.1 x 3.1 = 9.61 | I67: 3.1 | J67: 9.61 | R67: 26 - 22.9 = ? | T67: 3.1 x 3.1 = ?
B68: 14 | C68: 21 | D68: 22.9 | F68: 21 - 22.9 = -1.9 | H68: -1.9 x -1.9 = 3.61 | I68: -1.9 | J68: 3.61 | R68: 21 - 22.9 = ? | T68: -1.9 x -1.9 = ?
B69: 15 | C69: 19 | D69: 22.9 | F69: 19 - 22.9 = -3.9 | H69: -3.9 x -3.9 = 15.21 | I69: -3.9 | J69: 15.21 | R69: 19 - 22.9 = ? | T69: -3.9 x -3.9 = ?
B70: 16 | C70: 5 | D70: 22.9 | F70: 5 - 22.9 = -17.9 | H70: -17.9 x -17.9 = 320.41 | I70: -17.9 | J70: 320.41 | R70: 5 - 22.9 = ? | T70: -17.9 x -17.9 = ?
B71: 17 | C71: 23 | D71: 22.9 | F71: 23 - 22.9 = 0.1 | H71: 0.1 x 0.1 = 0.01 | I71: 0.1 | J71: 0.01 | R71: 23 - 22.9 = ? | T71: 0.1 x 0.1 = ?
B72: 18 | C72: 16 | D72: 22.9 | F72: 16 - 22.9 = -6.9 | H72: -6.9 x -6.9 = 47.61 | I72: -6.9 | J72: 47.61 | R72: 16 - 22.9 = ? | T72: -6.9 x -6.9 = ?
B73: 19 | C73: 10 | D73: 22.9 | F73: 10 - 22.9 = -12.9 | H73: -12.9 x -12.9 = 166.41 | I73: -12.9 | J73: 166.41 | R73: 10 - 22.9 = ? | T73: -12.9 x -12.9 = ?
B74: 20 | C74: 20 | D74: 22.9 | F74: 20 - 22.9 = -2.9 | H74: -2.9 x -2.9 = 8.41 | I74: -2.9 | J74: 8.41 | R74: 20 - 22.9 = ? | T74: -2.9 x -2.9 = ?
F75: Column Sum: | H75: =CONCATENATE("'= ",J75) -> '= 1575.8 | J75: =ROUND(SUM(J55:J74),2) -> 1575.8
B77: F-RATIO CALCULATION
B78: Between group degrees of freedom
F79: =CONCATENATE("'= 2 - 1") -> '= 2 - 1
F80: =CONCATENATE("'= 1") -> '= 1
B81: Within group degrees of freedom
F82: =CONCATENATE("'= (10 - 1) + (10 - 1)") -> '= (10 - 1) + (10 - 1)
F83: =CONCATENATE("'= 9 + 9") -> '= 9 + 9
F84: =CONCATENATE("'= 18") -> '= 18
B85: F-Statistic Numerator
F86: =CONCATENATE("'= ",P27," ÷ 1") -> '= 320 ÷ 1
F87: =CONCATENATE("'= ",P27) -> '= 320
B88: F-Statistic Denominator
F89: =CONCATENATE("'= ",J51," ÷ 18") -> '= 1255.8 ÷ 18 | H89: =ROUND(J51/18,2) -> 69.77
F90: =CONCATENATE("'= ",H89) -> '= 69.77
B91: F-Statistic
F92: =CONCATENATE("'= ",P27," ÷ ",H89) -> '= 320 ÷ 69.77 | H92: =ROUND(P27/H89,2) -> 4.59
F93: =CONCATENATE("'= ",H92) -> '= 4.59

Sheet ANOVA (3 groups)-A (hidden)
B1: PRACTICE CALCULATING ANOVA (3 GROUPS)
B6: GROUP 1 | E6: GROUP 2 | H6: GROUP 3 | K6: Means
B7: Case # | C7: Value | E7: Case # | F7: Value | H7: Case # | I7: Value | K7: Group 1 Mean | M7: =ROUND(AVERAGE(C8:C14),2) -> 10.14
A8: =RANDBETWEEN(1,20) -> 14 | B8: 1 | C8: 13 | D8: =RANDBETWEEN(4,24) -> 24 | E8: 8 | F8: 19 | G8: =RANDBETWEEN(6,26) -> 24 | H8: 17 | I8: 16 | K8: Group 2 Mean | M8: =ROUND(AVERAGE(F8:F16),2) -> 15.78
A9: =RANDBETWEEN(1,20) -> 7 | B9: 2 | C9: 11 | D9: =RANDBETWEEN(4,24) -> 7 | E9: 9 | F9: 18 | G9: =RANDBETWEEN(6,26) -> 21 | H9: 18 | I9: 10 | K9: Group 3 Mean | M9: =ROUND(AVERAGE(I8:I15),2) -> 14.38
A10: 15 | B10: 3 | C10: 11 | D10: 8 | E10: 10 | F10: 15 | G10: 24 | H10: 19 | I10: 11 | K10: Overall Mean | M10: =ROUND(AVERAGE(C8:C14,F8:F16,I8:I15),2) -> 13.67
A11: 10 | B11: 4 | C11: 3 | D11: 5 | E11: 11 | F11: 9 | G11: 10 | H11: 20 | I11: 11
A12: 1 | B12: 5 | C12: 16 | D12: 8 | E12: 12 | F12: 12 | G12: 12 | H12: 21 | I12: 23 | K12: Sum of Squares
A13: 5 | B13: 6 | C13: 15 | D13: 19 | E13: 13 | F13: 20 | G13: 14 | H13: 22 | I13: 7 | K13: Between group sum of squares | M13: =Q29 -> 131.27
A14: 17 | B14: 7 | C14: 2 | D14: 12 | E14: 14 | F14: 24 | G14: 19 | H14: 23 | I14: 11 | K14: Within group sum of squares | M14: =K57 -> 692.27
D15: 18 | E15: 15 | F15: 14 | G15: 24 | H15: 24 | I15: 26 | K15: Total sum of squares | M15: =K85 -> 823.36
D16: 13 | E16: 16 | F16: 11
K17: F-statistic
K18: Between group degrees of freedom | M18: 2
B19: Need some help? | K19: Within group degrees of freedom | M19: 21
K20: F-statistic | M20: =I103 -> 1.99
K22: If the F-statistic is greater than 3.44 then p<0.05.
B24: BETWEEN GROUP SUM OF SQUARES CALCULATION
B25: Group # | C25: Group Mean | D25: Overall Mean | F25: Cases in Group | H25: Group Mean-Overall Mean | K25: (Group Mean-Overall Mean)2 | L25: Cases in Group*(Group Mean-Overall Mean)2
B26: 1 | C26: =M7 -> 10.14 | D26: =$M$10 -> 13.67 | F26: 7 | H26: =CONCATENATE(C26," - ",D26," = ",O26) -> 10.14 - 13.67 = -3.53 | K26: =CONCATENATE(O26," x ",O26," = ",P26) -> -3.53 x -3.53 = 12.46 | L26: =CONCATENATE(F26," x ",P26," = ",Q26) -> 7 x 12.46 = 87.22 | O26: =ROUND(C26-D26,2) -> -3.53 | P26: =ROUND(O26*O26,2) -> 12.46 | Q26: =ROUND(P26*F26,2) -> 87.22 | R26: =CONCATENATE(C26," - ",D26," = ?") -> 10.14 - 13.67 = ? | U26: =CONCATENATE(O26," x ",O26," = ?") -> -3.53 x -3.53 = ? | V26: =CONCATENATE(F26," x ",P26," = ?") -> 7 x 12.46 = ?
B27: 2 | C27: =M8 -> 15.78 | D27: =$M$10 -> 13.67 | F27: 9 | H27: =CONCATENATE(C27," - ",D27," = ",O27) -> 15.78 - 13.67 = 2.11 | K27: =CONCATENATE(O27," x ",O27," = ",P27) -> 2.11 x 2.11 = 4.45 | L27: =CONCATENATE(F27," x ",P27," = ",Q27) -> 9 x 4.45 = 40.05 | O27: =ROUND(C27-D27,2) -> 2.11 | P27: =ROUND(O27*O27,2) -> 4.45 | Q27: =ROUND(P27*F27,2) -> 40.05 | R27: =CONCATENATE(C27," - ",D27," = ?") -> 15.78 - 13.67 = ? | U27: =CONCATENATE(O27," x ",O27," = ?") -> 2.11 x 2.11 = ? | V27: =CONCATENATE(F27," x ",P27," = ?") -> 9 x 4.45 = ?
B28: 3 | C28: =M9 -> 14.38 | D28: 13.67 | F28: 8 | H28: 14.38 - 13.67 = 0.71 | K28: 0.71 x 0.71 = 0.5 | L28: 8 x 0.5 = 4 | O28: =ROUND(C28-D28,2) -> 0.71 | P28: 0.5 | Q28: 4 | R28: 14.38 - 13.67 = ? | U28: 0.71 x 0.71 = ? | V28: 8 x 0.5 = ?
L29: Column Sum: | M29: =CONCATENATE("'= ",Q29) -> '= 131.27 | Q29: =SUM(Q26:Q28) -> 131.27
B31: WITHIN GROUP SUM OF SQUARES CALCULATION
B32: Case # | C32: Value | D32: Group Mean | F32: Value-Group Mean | H32: (Value - Group Mean)2
B33: 1 | C33: =C8 -> 13 | D33: =$M$7 -> 10.14 | F33: =CONCATENATE(C33," - ",D33," = ",J33) -> 13 - 10.14 = 2.86 | H33: =CONCATENATE(J33," x ",J33," = ",K33) -> 2.86 x 2.86 = 8.18 | J33: =ROUND(C33-D33,2) -> 2.86 | K33: =ROUND(J33*J33,2) -> 8.18 | R33: =CONCATENATE(C33," - ",D33," = ?") -> 13 - 10.14 = ? | T33: =CONCATENATE(J33," x ",J33," = ?") -> 2.86 x 2.86 = ?
B34: 2 | C34: =C9 -> 11 | D34: =$M$7 -> 10.14 | F34: =CONCATENATE(C34," - ",D34," = ",J34) -> 11 - 10.14 = 0.86 | H34: =CONCATENATE(J34," x ",J34," = ",K34) -> 0.86 x 0.86 = 0.74 | J34: =ROUND(C34-D34,2) -> 0.86 | K34: =ROUND(J34*J34,2) -> 0.74 | R34: =CONCATENATE(C34," - ",D34," = ?") -> 11 - 10.14 = ? | T34: =CONCATENATE(J34," x ",J34," = ?") -> 0.86 x 0.86 = ?
B35: 3 | C35: 11 | D35: 10.14 | F35: 11 - 10.14 = 0.86 | H35: 0.86 x 0.86 = 0.74 | J35: 0.86 | K35: 0.74 | R35: 11 - 10.14 = ? | T35: 0.86 x 0.86 = ?
B36: 4 | C36: 3 | D36: 10.14 | F36: 3 - 10.14 = -7.14 | H36: -7.14 x -7.14 = 50.98 | J36: -7.14 | K36: 50.98 | R36: 3 - 10.14 = ? | T36: -7.14 x -7.14 = ?
B37: 5 | C37: 16 | D37: 10.14 | F37: 16 - 10.14 = 5.86 | H37: 5.86 x 5.86 = 34.34 | J37: 5.86 | K37: 34.34 | R37: 16 - 10.14 = ? | T37: 5.86 x 5.86 = ?
B38: 6 | C38: 15 | D38: 10.14 | F38: 15 - 10.14 = 4.86 | H38: 4.86 x 4.86 = 23.62 | J38: 4.86 | K38: 23.62 | R38: 15 - 10.14 = ? | T38: 4.86 x 4.86 = ?
B39: 7 | C39: =C14 -> 2 | D39: 10.14 | F39: 2 - 10.14 = -8.14 | H39: -8.14 x -8.14 = 66.26 | J39: -8.14 | K39: 66.26 | R39: 2 - 10.14 = ? | T39: -8.14 x -8.14 = ?
B40: 8 | C40: =F8 -> 19 | D40: =$M$8 -> 15.78 | F40: 19 - 15.78 = 3.22 | H40: 3.22 x 3.22 = 10.37 | J40: 3.22 | K40: 10.37 | R40: 19 - 15.78 = ? | T40: 3.22 x 3.22 = ?
B41: 9 | C41: =F9 -> 18 | D41: =$M$8 -> 15.78 | F41: 18 - 15.78 = 2.22 | H41: 2.22 x 2.22 = 4.93 | J41: 2.22 | K41: 4.93 | R41: 18 - 15.78 = ? | T41: 2.22 x 2.22 = ?
B42: 10 | C42: 15 | D42: 15.78 | F42: 15 - 15.78 = -0.78 | H42: -0.78 x -0.78 = 0.61 | J42: -0.78 | K42: 0.61 | R42: 15 - 15.78 = ? | T42: -0.78 x -0.78 = ?
B43: 11 | C43: 9 | D43: 15.78 | F43: 9 - 15.78 = -6.78 | H43: -6.78 x -6.78 = 45.97 | J43: -6.78 | K43: 45.97 | R43: 9 - 15.78 = ? | T43: -6.78 x -6.78 = ?
B44: 12 | C44: 12 | D44: 15.78 | F44: 12 - 15.78 = -3.78 | H44: -3.78 x -3.78 = 14.29 | J44: -3.78 | K44: 14.29 | R44: 12 - 15.78 = ? | T44: -3.78 x -3.78 = ?
B45: 13 | C45: 20 | D45: 15.78 | F45: 20 - 15.78 = 4.22 | H45: 4.22 x 4.22 = 17.81 | J45: 4.22 | K45: 17.81 | R45: 20 - 15.78 = ? | T45: 4.22 x 4.22 = ?
B46: 14 | C46: 24 | D46: 15.78 | F46: 24 - 15.78 = 8.22 | H46: 8.22 x 8.22 = 67.57 | J46: 8.22 | K46: 67.57 | R46: 24 - 15.78 = ? | T46: 8.22 x 8.22 = ?
B47: 15 | C47: 14 | D47: 15.78 | F47: 14 - 15.78 = -1.78 | H47: -1.78 x -1.78 = 3.17 | J47: -1.78 | K47: 3.17 | R47: 14 - 15.78 = ? | T47: -1.78 x -1.78 = ?
B48: 16 | C48: 11 | D48: 15.78 | F48: 11 - 15.78 = -4.78 | H48: -4.78 x -4.78 = 22.85 | J48: -4.78 | K48: 22.85 | R48: 11 - 15.78 = ? | T48: -4.78 x -4.78 = ?
B49: 17 | C49: =I8 -> 16 | D49: =$M$9 -> 14.38 | F49: 16 - 14.38 = 1.62 | H49: 1.62 x 1.62 = 2.62 | J49: 1.62 | K49: 2.62 | R49: 16 - 14.38 = ? | T49: 1.62 x 1.62 = ?
B50: 18 | C50: =I9 -> 10 | D50: =$M$9 -> 14.38 | F50: 10 - 14.38 = -4.38 | H50: -4.38 x -4.38 = 19.18 | J50: -4.38 | K50: 19.18 | R50: 10 - 14.38 = ? | T50: -4.38 x -4.38 = ?
B51: 19 | C51: 11 | D51: 14.38 | F51: 11 - 14.38 = -3.38 | H51: -3.38 x -3.38 = 11.42 | J51: -3.38 | K51: 11.42 | R51: 11 - 14.38 = ? | T51: -3.38 x -3.38 = ?
B52: 20 | C52: 11 | D52: 14.38 | F52: 11 - 14.38 = -3.38 | H52: -3.38 x -3.38 = 11.42 | J52: -3.38 | K52: 11.42 | R52: 11 - 14.38 = ? | T52: -3.38 x -3.38 = ?
B53: 21 | C53: 23 | D53: 14.38 | F53: 23 - 14.38 = 8.62 | H53: 8.62 x 8.62 = 74.3 | J53: 8.62 | K53: 74.3 | R53: 23 - 14.38 = ? | T53: 8.62 x 8.62 = ?
B54: 22 | C54: 7 | D54: 14.38 | F54: 7 - 14.38 = -7.38 | H54: -7.38 x -7.38 = 54.46 | J54: -7.38 | K54: 54.46 | R54: 7 - 14.38 = ? | T54: -7.38 x -7.38 = ?
B55: 23 | C55: 11 | D55: 14.38 | F55: 11 - 14.38 = -3.38 | H55: -3.38 x -3.38 = 11.42 | J55: -3.38 | K55: 11.42 | R55: 11 - 14.38 = ? | T55: -3.38 x -3.38 = ?
B56: 24 | C56: 26 | D56: 14.38 | F56: 26 - 14.38 = 11.62 | H56: 11.62 x 11.62 = 135.02 | J56: 11.62 | K56: 135.02 | R56: 26 - 14.38 = ? | T56: 11.62 x 11.62 = ?
F57: Column Sum: | H57: =CONCATENATE("'= ",K57) -> '= 692.27 | K57: =ROUND(SUM(K33:K56),2) -> 692.27
B59: TOTAL SUM OF SQUARES CALCULATION
B60: Case # | C60: Value | D60: Overall Mean | F60: Value-Group Mean | H60: (Value - Group Mean)2
B61: 1 | C61: =C8 -> 13 | D61: =$M$10 -> 13.67 | F61: =CONCATENATE(C61," - ",D61," = ",J61) -> 13 - 13.67 = -0.67 | H61: =CONCATENATE(J61," x ",J61," = ",K61) -> -0.67 x -0.67 = 0.45 | J61: =ROUND(C61-D61,2) -> -0.67 | K61: =ROUND(J61*J61,2) -> 0.45 | R61: =CONCATENATE(C61," - ",D61," = ?") -> 13 - 13.67 = ? | T61: =CONCATENATE(J61," x ",J61," = ?") -> -0.67 x -0.67 = ?
B62: 2 | C62: =C9 -> 11 | D62: =$M$10 -> 13.67 | F62: =CONCATENATE(C62," - ",D62," = ",J62) -> 11 - 13.67 = -2.67 | H62: =CONCATENATE(J62," x ",J62," = ",K62) -> -2.67 x -2.67 = 7.13 | J62: =ROUND(C62-D62,2) -> -2.67 | K62: =ROUND(J62*J62,2) -> 7.13 | R62: =CONCATENATE(C62," - ",D62," = ?") -> 11 - 13.67 = ? | T62: =CONCATENATE(J62," x ",J62," = ?") -> -2.67 x -2.67 = ?
B63: 3 | C63: 11 | D63: 13.67 | F63: 11 - 13.67 = -2.67 | H63: -2.67 x -2.67 = 7.13 | J63: -2.67 | K63: 7.13 | R63: 11 - 13.67 = ? | T63: -2.67 x -2.67 = ?
B64: 4 | C64: 3 | D64: 13.67 | F64: 3 - 13.67 = -10.67 | H64: -10.67 x -10.67 = 113.85 | J64: -10.67 | K64: 113.85 | R64: 3 - 13.67 = ? | T64: -10.67 x -10.67 = ?
B65: 5 | C65: 16 | D65: 13.67 | F65: 16 - 13.67 = 2.33 | H65: 2.33 x 2.33 = 5.43 | J65: 2.33 | K65: 5.43 | R65: 16 - 13.67 = ? | T65: 2.33 x 2.33 = ?
B66: 6 | C66: 15 | D66: 13.67 | F66: 15 - 13.67 = 1.33 | H66: 1.33 x 1.33 = 1.77 | J66: 1.33 | K66: 1.77 | R66: 15 - 13.67 = ? | T66: 1.33 x 1.33 = ?
B67: 7 | C67: 2 | D67: 13.67 | F67: 2 - 13.67 = -11.67 | H67: -11.67 x -11.67 = 136.19 | J67: -11.67 | K67: 136.19 | R67: 2 - 13.67 = ? | T67: -11.67 x -11.67 = ?
B68: 8 | C68: =F8 -> 19 | D68: 13.67 | F68: 19 - 13.67 = 5.33 | H68: 5.33 x 5.33 = 28.41 | J68: 5.33 | K68: 28.41 | R68: 19 - 13.67 = ? | T68: 5.33 x 5.33 = ?
B69: 9 | C69: =F9 -> 18 | D69: 13.67 | F69: 18 - 13.67 = 4.33 | H69: 4.33 x 4.33 = 18.75 | J69: 4.33 | K69: 18.75 | R69: 18 - 13.67 = ? | T69: 4.33 x 4.33 = ?
B70: 10 | C70: 15 | D70: 13.67 | F70: 15 - 13.67 = 1.33 | H70: 1.33 x 1.33 = 1.77 | J70: 1.33 | K70: 1.77 | R70: 15 - 13.67 = ? | T70: 1.33 x 1.33 = ?
B71: 11 | C71: 9 | D71: 13.67 | F71: 9 - 13.67 = -4.67 | H71: -4.67 x -4.67 = 21.81 | J71: -4.67 | K71: 21.81 | R71: 9 - 13.67 = ? | T71: -4.67 x -4.67 = ?
B72: 12 | C72: 12 | D72: 13.67 | F72: 12 - 13.67 = -1.67 | H72: -1.67 x -1.67 = 2.79 | J72: -1.67 | K72: 2.79 | R72: 12 - 13.67 = ? | T72: -1.67 x -1.67 = ?
B73: 13 | C73: 20 | D73: 13.67 | F73: 20 - 13.67 = 6.33 | H73: 6.33 x 6.33 = 40.07 | J73: 6.33 | K73: 40.07 | R73: 20 - 13.67 = ? | T73: 6.33 x 6.33 = ?
B74: 14 | C74: 24 | D74: 13.67 | F74: 24 - 13.67 = 10.33 | H74: 10.33 x 10.33 = 106.71 | J74: 10.33 | K74: 106.71 | R74: 24 - 13.67 = ? | T74: 10.33 x 10.33 = ?
B75: 15 | C75: 14 | D75: 13.67 | F75: 14 - 13.67 = 0.33 | H75: 0.33 x 0.33 = 0.11 | J75: 0.33 | K75: 0.11 | R75: 14 - 13.67 = ? | T75: 0.33 x 0.33 = ?
B76: 16 | C76: 11 | D76: 13.67 | F76: 11 - 13.67 = -2.67 | H76: -2.67 x -2.67 = 7.13 | J76: -2.67 | K76: 7.13 | R76: 11 - 13.67 = ? | T76: -2.67 x -2.67 = ?
B77: 17 | C77: =I8 -> 16 | D77: 13.67 | F77: 16 - 13.67 = 2.33 | H77: 2.33 x 2.33 = 5.43 | J77: 2.33 | K77: 5.43 | R77: 16 - 13.67 = ? | T77: 2.33 x 2.33 = ?
B78: 18 | C78: =I9 -> 10 | D78: 13.67 | F78: 10 - 13.67 = -3.67 | H78: -3.67 x -3.67 = 13.47 | J78: -3.67 | K78: 13.47 | R78: 10 - 13.67 = ? | T78: -3.67 x -3.67 = ?
B79: 19 | C79: 11 | D79: 13.67 | F79: 11 - 13.67 = -2.67 | H79: -2.67 x -2.67 = 7.13 | J79: -2.67 | K79: 7.13 | R79: 11 - 13.67 = ? | T79: -2.67 x -2.67 = ?
B80: 20 | C80: 11 | D80: 13.67 | F80: 11 - 13.67 = -2.67 | H80: -2.67 x -2.67 = 7.13 | J80: -2.67 | K80: 7.13 | R80: 11 - 13.67 = ? | T80: -2.67 x -2.67 = ?
B81: 21 | C81: 23 | D81: 13.67 | F81: 23 - 13.67 = 9.33 | H81: 9.33 x 9.33 = 87.05 | J81: 9.33 | K81: 87.05 | R81: 23 - 13.67 = ? | T81: 9.33 x 9.33 = ?
B82: 22 | C82: 7 | D82: 13.67 | F82: 7 - 13.67 = -6.67 | H82: -6.67 x -6.67 = 44.49 | J82: -6.67 | K82: 44.49 | R82: 7 - 13.67 = ? | T82: -6.67 x -6.67 = ?
B83: 23 | C83: 11 | D83: 13.67 | F83: 11 - 13.67 = -2.67 | H83: -2.67 x -2.67 = 7.13 | J83: -2.67 | K83: 7.13 | R83: 11 - 13.67 = ? | T83: -2.67 x -2.67 = ?
B84: 24 | C84: 26 | D84: 13.67 | F84: 26 - 13.67 = 12.33 | H84: 12.33 x 12.33 = 152.03 | J84: 12.33 | K84: 152.03 | R84: 26 - 13.67 = ? | T84: 12.33 x 12.33 = ?
F85: Column Sum: | H85: =CONCATENATE("'= ",K85) -> '= 823.36 | K85: =ROUND(SUM(K61:K84),2) -> 823.36
B87: F-RATIO CALCULATION
B88: Between group degrees of freedom
F89: =CONCATENATE("'= 3 - 1") -> '= 3 - 1
F90: =CONCATENATE("'= 2") -> '= 2
B91: Within group degrees of freedom
F92: =CONCATENATE("'= (7 - 1) + (9 - 1) + (8 - 1)") -> '= (7 - 1) + (9 - 1) + (8 - 1)
F93: =CONCATENATE("'= 6 + 8 + 7") -> '= 6 + 8 + 7
F94: =CONCATENATE("'= 21") -> '= 21
B95: F-Statistic Numerator
F96: =CONCATENATE("'= ",Q29," ÷ 2") -> '= 131.27 ÷ 2
F97: =CONCATENATE("'= ",I97) -> '= 65.64 | I97: =ROUND(Q29/2,2) -> 65.64
B98: F-Statistic Denominator
F99: =CONCATENATE("'= ",K57," ÷ 21") -> '= 692.27 ÷ 21
F100: =CONCATENATE("'= ",I100) -> '= 32.97 | I100: =ROUND(K57/21,2) -> 32.97
B101: F-Statistic
F102: =CONCATENATE("'= ",I97," ÷ ",I100) -> '= 65.64 ÷ 32.97
F103: =CONCATENATE("' = ",I103) -> ' = 1.99 | I103: =ROUND(I97/I100,2) -> 1.99
